bitfinex/quotes_ETHUSD_20240716
["timestamp","ask_amount","ask_price","bid_price","bid_amount"]
[1721091835665,2.3293,3472.5,3472.1,2.88007]
[1721091836009,0.05387539,3472.4,3472.1,2.88007]
[1721091836467,0.05387539,3472.4,3472.2,2.87999]
[1721091836661,2.2845,3472.9,3472.2,2.87999]
[1721091836905,0.52845,3472.8,3472.2,2.87999]
[1721091837087,0.58235793,3472.8,3472.2,2.87999]
[1721091837295,0.58235793,3472.8,3472.4,2.87985]
[1721091839218,0.58235793,3472.8,3471.5,2.4419]
[1721091839387,0.05390793,3472.8,3472.5,2.8797]
[1721091839713,0.05390793,3472.8,3472.5,5.7594]
[1721091840284,0.05390793,3472.8,3472.3,2.87989]
[1721091840491,0.05390793,3472.8,3472.4,2.87983]
[1721091841114,0.05390793,3472.8,3471.7,2.88038]
[1721091841115,2.87967,3472.7,3471.7,2.88038]
[1721091841336,2.87977,3472.5,3471.6,2.88051]
[1721091841617,2.51726747,3472.4,3471.6,2.88051]
[1721091841920,2.51726747,3472.4,3471.7,2.88042]
[1721091842771,2.51726747,3472.4,3471.6,2.88043]
[1721091843118,2.51726747,3472.4,3472.0,2.88011]
[1721091843321,2.76899422,3472.4,3471.7,2.88042]
[1721091843520,2.71512675,3472.4,3471.9,2.88025]
[1721091843702,0.05380037,3472.3,3472.0,2.88017]
[1721091844313,0.05380037,3472.3,3471.7,2.88042]
[1721091844885,0.05380037,3472.3,3471.6,2.88051]
[1721091845183,0.25172004,3472.2,3471.6,2.88051]
[1721091845409,0.05378285,3472.1,3471.6,2.88051]
[1721091846592,0.05378285,3472.1,3471.7,2.88041]
[1721091847194,0.05378285,3472.1,3471.6,2.88049]
[1721091851588,0.05378285,3472.1,3471.7,2.88042]
[1721091852016,2.4634,3472.4,3471.9,2.8802]
[1721091852318,0.3001002,3472.3,3471.9,2.8802]
[1721091852835,0.0537602,3472.3,3471.9,2.8802]
[1721091852980,0.0537602,3472.3,3471.3,2.434]
[1721091853179,0.0537602,3472.3,3471.4,0.55]
[1721091853539,0.0537602,3472.3,3472.2,5.76002]
[1721091853822,3.02395834,3472.9,3472.4,2.87982]
[1721091854045,1.39599658,3472.8,3472.4,2.87982]
[1721091854602,1.39599658,3472.8,3472.5,2.87973]
[1721091855231,2.4251,3472.7,3472.2,2.87995]
[1721091855411,0.05385174,3472.6,3472.2,2.87995]
[1721091855737,0.05385174,3472.6,3472.3,2.87992]
[1721091855937,0.05385174,3472.6,3472.4,2.87984]
[1721091856300,0.58568396,3472.6,3472.1,2.88009]
[1721091856500,0.58568396,3472.6,3472.4,2.87984]
[1721091856897,0.05385174,3472.6,3472.5,5.75952]
[1721091857109,11.9704,3473.1,3472.1,4.7725]
[1721091857310,11.9704,3473.1,3473.0,2.87935]
[1721091858005,9.5,3473.1,3473.0,5.7587]
[1721091859400,9.5,3473.1,3473.0,8.63805]
[1721091859602,0.90068837,3474.2,3473.0,8.63805]
[1721091859603,0.60045891,3474.2,3473.0,3.42935]
[1721091859812,6.62148,3473.9,3473.8,2.87869]
[1721091861102,6.62148,3473.9,3472.9,12.0847]
[1721091861103,6.62148,3473.9,3473.4,2.87896]
[1721091861311,6.62148,3473.9,3473.6,2.87884]
[1721091861526,6.62148,3473.9,3473.4,2.87896]
[1721091862064,2.2601,3473.8,3473.2,2.87912]
[1721091862265,2.2601,3473.8,3472.9,2.87943]
[1721091862266,0.60045891,3473.7,3472.9,2.87943]
[1721091862450,3.52270691,3473.8,3472.9,2.87943]
[1721091862644,0.60045891,3473.7,3472.9,2.87943]
[1721091862820,1.42210703,3473.6,3472.9,2.87943]
[1721091863334,1.42210703,3473.6,3472.1,4.7147]
[1721091863335,1.42210703,3473.6,3473.0,2.87933]
[1721091863537,1.42210703,3473.6,3473.0,2.87928]
[1721091864756,2.02123232,3473.6,3473.0,2.87928]
[1721091864962,1.42210703,3473.6,3473.0,2.87928]
[1721091865534,0.43086907,3473.5,3473.2,2.87918]
[1721091866060,9.93086907,3473.5,3473.2,2.87918]
[1721091867859,9.5,3473.5,3473.4,2.87902]
[1721091868450,9.5,3473.5,3473.4,5.75804]
[1721091869537,9.5,3473.5,3473.4,2.87902]
[1721091870070,9.5,3473.5,3473.2,2.87918]
[1721091870267,0.95,3473.4,3473.0,2.87933]
[1721091870468,0.95,3473.4,3473.1,2.87924]
[1721091871249,0.95,3473.4,3473.3,2.8791]
[1721091871459,9.5,3473.5,3473.3,2.8791]
[1721091872245,0.0541205,3473.4,3473.3,2.8791]
[1721091873136,0.0541205,3473.4,3473.3,5.7582]
[1721091873743,9.5,3473.5,3473.4,5.75804]
[1721091874036,9.55413081,3473.5,3473.4,5.75804]
[1721091878677,9.55413081,3473.5,3473.4,8.63706]
[1721091878974,9.55413081,3473.5,3473.4,9.18706]
[1721091878975,9.5,3473.5,3473.4,9.18706]
[1721091879348,9.5,3473.5,3473.4,12.18706]
[1721091879349,0.05437448,3473.5,3473.4,12.18706]
[1721091879776,9.5,3474.3,3474.2,2.87836]
[1721091880202,9.55440554,3474.3,3474.2,5.75672]
[1721091884604,9.55440554,3474.3,3474.2,8.63508]
[1721091884765,9.55440554,3474.3,3474.2,9.18508]
[1721091885096,6.62254,3475.0,3474.7,2.87794]
[1721091885303,6.62254,3475.0,3474.9,8.18956]
[1721091886150,6.62254,3475.0,3474.9,11.06734]
[1721091886355,2.4655,3475.8,3475.7,2.87711]
[1721091886560,6.62289,3475.7,3475.5,2.87728]
[1721091886783,6.62289,3475.7,3475.6,2.8772]
[1721091886985,6.62289,3475.7,3475.6,5.7544]
[1721091887487,6.67617245,3475.7,3475.6,5.7544]
[1721091889664,6.67617245,3475.7,3475.6,2.8772]
[1721091889890,6.67617245,3475.7,3475.6,5.7544]
[1721091892396,6.67617245,3475.7,3474.9,2.434]
[1721091892596,6.67617245,3475.7,3475.4,2.87735]
[1721091892795,2.4722,3475.6,3475.5,2.87728]
[1721091892998,6.67617245,3475.7,3475.6,5.7544]
[1721091893306,6.62289,3475.7,3475.6,2.8772]
[1721091900403,6.62289,3475.7,3474.5,2.8781]
[1721091900404,2.3724,3475.6,3474.5,2.434]
[1721091900630,0.899529,3475.5,3474.8,2.87778]
[1721091901017,0.899529,3475.5,3475.0,2.87765]
[1721091901558,2.3724,3475.6,3475.3,2.87742]
[1721091901705,6.62289,3475.7,3475.5,2.87728]
[1721091902347,0.05324565,3475.6,3475.5,2.87728]
[1721091903031,0.05324565,3475.6,3475.4,2.87735]
[1721091903603,2.4929,3475.5,3474.5,5.434]
[1721091903808,0.05324878,3475.4,3475.1,2.87758]
[1721091904032,0.05324878,3475.4,3475.3,2.87744]
[1721091904240,0.05324878,3475.4,3475.1,2.87758]
[1721091904421,0.05324878,3475.4,3474.9,2.87776]
[1721091904629,0.05324878,3475.4,3474.2,2.87831]
[1721091904947,2.2598,3475.2,3474.4,2.87818]
[1721091905145,2.2598,3475.2,3473.6,2.434]
[1721091905348,2.4153,3475.0,3474.2,2.87835]
[1721091905716,0.05310886,3474.9,3474.2,2.87835]
[1721091906918,0.05310886,3474.9,3474.3,2.87825]
[1721091907306,0.05310886,3474.9,3473.7,2.434]
[1721091907307,0.05310886,3474.9,3474.8,2.87786]
[1721091908332,0.05310886,3474.9,3474.8,5.75572]
[1721091909944,0.05310886,3474.9,3474.8,5.65572]
[1721091910506,0.05310886,3474.9,3474.8,5.45572]
[1721091912061,0.05310886,3474.9,3474.8,2.57786]
[1721091913123,0.05310886,3474.9,3474.8,5.45572]
[1721091919253,0.71214743,3474.9,3474.8,5.45572]
[1721091919419,3.11164743,3474.9,3474.1,2.87842]
[1721091919619,2.3995,3474.8,3473.7,2.87871]
[1721091919922,2.3995,3474.8,3473.6,2.87884]
[1721091919923,2.3995,3474.5,3473.6,2.87884]
[1721091920133,0.53306652,3474.4,3473.6,2.87884]
[1721091920368,0.58618481,3474.4,3473.2,2.87914]
[1721091920513,2.87836,3474.2,3473.3,2.8791]
[1721091920814,2.87836,3474.2,3473.1,2.87922]
[1721091921015,0.05296091,3474.1,3473.2,2.87917]
[1721091921241,0.53592209,3474.0,3473.2,2.87917]
[1721091921411,2.4712,3473.9,3473.2,2.87917]
[1721091921627,2.52415623,3473.9,3472.5,2.87969]
[1721091921864,2.52415623,3473.9,3473.3,2.87909]
[1721091922040,2.52415623,3473.9,3473.4,2.879]
[1721091922360,2.52415623,3473.9,3473.6,2.87885]
[1721091922983,2.52415623,3473.9,3473.8,2.87869]
[1721091922984,0.05295623,3473.9,3473.8,2.87869]
[1721091923280,9.5,3474.1,3474.0,2.87852]
[1721091925326,9.5,3474.1,3473.8,2.87869]
[1721091926328,9.5,3474.1,3473.9,2.87859]
[1721091926535,10.2923607,3474.1,3473.7,2.87876]
[1721091927060,10.2923607,3474.1,3473.5,2.87887]
[1721091927246,10.2923607,3474.1,3473.6,2.87883]
[1721091927630,10.2923607,3474.1,3473.7,2.87874]
[1721091927930,10.2923607,3474.1,3473.5,2.87889]
[1721091928254,1.27635607,3474.0,3473.5,2.87889]
[1721091928783,1.27635607,3474.0,3473.2,2.87917]
[1721091929139,1.27635607,3474.0,3472.9,2.87938]
[1721091929140,2.87877,3473.7,3472.9,2.87938]
[1721091929542,12.37877,3473.7,3472.9,2.87938]
[1721091929881,0.2969538,3473.6,3472.9,2.87938]
[1721091930205,1.26757238,3473.5,3472.9,2.87938]
[1721091930838,1.26757238,3473.5,3472.7,2.87958]
[1721091931039,2.4682,3473.4,3472.7,2.87958]
[1721091932378,0.10679565,3473.3,3472.7,2.87958]
[1721091932546,0.10679565,3473.3,3472.8,2.87948]
[1721091932746,9.60679565,3473.3,3472.8,2.87948]
[1721091933454,10.8439906,3473.3,3472.8,2.87948]
[1721091934143,10.8439906,3473.3,3472.6,2.87964]
[1721091934337,10.8439906,3473.3,3472.4,2.87981]
[1721091934945,10.8439906,3473.3,3472.5,2.87973]
[1721091935144,1.61912406,3473.2,3471.8,9.804]
[1721091935360,1.61912406,3473.2,3471.5,2.88055]
[1721091935361,2.4324,3473.0,3471.5,2.88055]
[1721091935650,0.10664897,3472.9,3472.1,2.88008]
[1721091936054,9.60664897,3472.9,3472.1,2.88008]
[1721091938695,9.60664897,3472.9,3472.2,2.88]
[1721091938901,1.4918419,3472.8,3472.2,2.88]
[1721091939200,1.59835473,3472.8,3472.2,2.88]
[1721091940161,0.29703649,3472.7,3472.2,2.88]
[1721091940364,0.40354634,3472.7,3472.2,2.88]
[1721091940608,0.40354634,3472.7,3471.9,2.88024]
[1721091940813,1.13953882,3472.6,3472.0,2.88016]
[1721091941115,0.10650679,3472.5,3472.0,2.88016]
[1721091941599,9.60650679,3472.5,3472.0,2.88016]
[1721091941964,2.4243,3472.4,3472.0,2.88016]
[1721091942165,2.53079947,3472.4,3471.7,2.88036]
[1721091942461,3.76358307,3472.4,3471.9,2.88025]
[1721091943286,3.76358307,3472.4,3472.0,2.88017]
[1721091943693,2.53079947,3472.4,3472.1,2.88009]
[1721091944344,2.53079947,3472.4,3471.9,2.88022]
[1721091944482,2.53079947,3472.4,3471.8,2.88034]
[1721091944896,2.53079947,3472.4,3471.2,7.37]
[1721091945099,2.53079947,3472.4,3470.0,0.45167106]
[1721091945100,2.2899,3471.9,3470.5,7.37]
[1721091945301,2.88044,3471.7,3470.9,2.88106]
[1721091945483,3.21580108,3471.8,3471.0,2.881]
[1721091945713,0.33539108,3471.8,3471.0,2.881]
[1721091946630,0.33539108,3471.8,3470.6,2.88132]
[1721091946826,0.10640108,3471.8,3471.3,2.8807]
[1721091947125,0.10640108,3471.8,3471.7,2.88043]
[1721091950120,0.10640108,3471.8,3471.6,2.88046]
[1721091950121,2.46500108,3471.8,3471.6,2.88046]
[1721091951421,2.46500108,3471.8,3470.3,9.804]
[1721091951720,1.19650011,3471.7,3471.1,2.88091]
[1721091952109,1.30271474,3471.7,3471.1,2.88091]
[1721091952334,1.30271474,3471.7,3470.8,2.88111]
[1721091952629,2.3586,3471.4,3470.9,2.88102]
[1721091952998,0.10615783,3471.3,3470.9,2.88102]
[1721091955192,0.10615783,3471.3,3471.2,2.88084]
[1721091955416,0.10615783,3471.3,3471.0,2.88093]
[1721091955786,0.10615783,3471.3,3471.2,2.88084]
[1721091956399,0.10615783,3471.3,3470.9,2.88102]
[1721091956602,0.10615783,3471.3,3471.1,2.88087]
[1721091957015,1.43721733,3471.3,3470.9,2.88102]
[1721091957393,1.43721733,3471.3,3470.7,2.88125]
[1721091958095,1.43721733,3471.3,3470.5,2.88142]
[1721091958335,2.2962,3471.2,3470.5,2.88142]
[1721091958547,2.2962,3471.2,3470.3,2.88155]
[1721091958694,1.32334173,3471.1,3470.4,2.8815]
[1721091959035,2.54303468,3471.0,3470.4,2.8815]
[1721091959548,12.04303468,3471.0,3470.4,2.8815]
[1721091959751,12.04303468,3471.0,3470.2,2.88163]
[1721091959752,12.04303468,3471.0,3470.5,2.88141]
[1721091960851,12.04303468,3471.0,3470.3,2.88157]
[1721091961055,1.33663764,3470.9,3470.4,2.88145]
[1721091961227,12.04303468,3471.0,3469.9,2.434]
[1721091961425,0.10598918,3470.8,3470.7,2.88126]
[1721091961733,9.5,3471.0,3470.9,2.88109]
[1721091962312,9.60597341,3471.0,3470.9,2.88109]
[1721091963649,9.60597341,3471.0,3470.8,2.88117]
[1721091963829,9.60597341,3471.0,3470.3,2.434]
[1721091963830,9.60597341,3471.0,3470.9,2.88109]
[1721091965556,9.60597341,3471.0,3470.7,2.88122]
[1721091965756,9.60597341,3471.0,3469.9,12.804]
[1721091965757,2.4717,3470.9,3470.3,2.88158]
[1721091966048,2.57771115,3470.9,3470.2,2.8816]
[1721091966256,1.30382708,3470.8,3470.3,2.88157]
[1721091966673,1.30382708,3470.8,3470.1,2.88175]
[1721091966674,0.10601245,3470.7,3470.1,2.88175]
[1721091968131,0.10601245,3470.7,3470.2,2.88167]
[1721091968332,1.63349189,3470.7,3470.2,2.88167]
[1721091969245,1.63349189,3470.7,3469.8,0.1217007]
[1721091969246,1.63349189,3470.7,3470.1,2.88173]
[1721091970441,4.51482189,3470.7,3469.8,0.1217007]
[1721091970643,5.26967,3470.6,3469.8,3.0037007]
[1721091970963,0.10585807,3470.5,3469.9,2.88184]
[1721091971169,0.40216375,3470.4,3469.9,2.88184]
[1721091971478,0.50801157,3470.4,3469.9,2.88184]
[1721091972034,2.4711,3470.3,3469.8,0.1217007]
[1721091972238,5.35272,3470.3,3469.8,0.1217007]
[1721091972478,0.10582984,3470.2,3469.8,0.1217007]
[1721091972633,0.6918822,3470.2,3469.8,0.1217007]
[1721091973082,0.6918822,3470.2,3469.8,3.0036907]
[1721091973285,0.10582984,3470.2,3469.9,2.88192]
[1721091974245,0.10582984,3470.2,3470.1,2.88176]
[1721091974447,2.4711,3470.3,3470.1,2.88176]
[1721091974741,0.10580106,3470.2,3470.1,2.88176]
[1721091975164,0.10580106,3470.2,3469.9,2.88192]
[1721091975388,0.25769011,3470.1,3469.8,0.1217007]
[1721091976858,0.10575145,3470.0,3469.8,0.1217007]
[1721091977842,2.267,3469.9,3469.8,0.1217007]
[1721091978245,2.37271994,3469.9,3469.8,0.1217007]
[1721091980287,0.10571994,3469.9,3469.8,3.0037107]
[1721091981443,0.10571994,3469.9,3469.8,0.1217007]
[1721091981652,0.26429193,3469.9,3469.8,0.1217007]
[1721091982394,0.10571994,3469.9,3469.8,0.1217007]
[1721091983689,2.48821994,3469.9,3469.8,0.1217007]
[1721091984772,5.37013994,3469.9,3469.8,0.1217007]
[1721091985484,2.48821994,3469.9,3469.8,0.1217007]
[1721091988207,5.37013994,3469.9,3469.8,0.1217007]
[1721091988566,5.66678747,3469.9,3469.8,0.1217007]
[1721091988791,6.66965122,3469.9,3469.8,0.1217007]
[1721091989611,9.55157122,3469.9,3469.8,0.1217007]
[1721091991623,6.66965122,3469.9,3469.8,0.1217007]
[1721091991812,3.78773122,3469.9,3469.8,0.1217007]
[1721091992014,0.40236747,3469.9,3469.8,0.1217007]
[1721091992321,0.10571994,3469.9,3469.8,0.1217007]
[1721091992527,0.10571994,3469.9,3469.8,3.0037107]
[1721091992872,0.10571994,3469.9,3469.8,5.94335836]
[1721091993078,0.10571994,3469.9,3469.8,5.8857207]
[1721091993399,1.48,3470.0,3469.9,5.76384]
[1721091993719,1.48,3470.0,3469.8,3.0037107]
[1721091993720,0.10547729,3469.9,3469.8,3.0037107]
[1721091993875,1.48,3470.0,3469.8,0.1217007]
[1721091994075,0.25354255,3469.9,3469.8,0.1217007]
[1721091994384,0.10554255,3469.9,3469.8,0.1217007]
[1721091996375,0.10554255,3469.9,3469.8,3.0037107]
[1721091996577,0.10554255,3469.9,3469.8,5.8857207]
[1721091997703,0.10554255,3469.9,3469.8,8.3700207]
[1721091997907,0.10554255,3469.9,3469.8,8.9200207]
[1721091999331,0.10554255,3469.9,3469.8,11.8020307]
[1721091999911,1e-08,3469.9,3469.8,14.8020307]
[1721092000099,0.10212823,3469.9,3469.8,14.8020307]
[1721092001742,0.10212823,3469.9,3469.8,17.6840407]
[1721092001939,0.10212823,3469.9,3469.8,18.68604002]
[1721092002328,7.778988,3470.0,3469.9,8.64576]
[1721092002495,7.778988,3470.0,3469.9,15.63175932]
[1721092002696,7.778988,3470.0,3469.9,15.63173979]
[1721092003133,7.778988,3470.0,3469.9,15.63173963]
[1721092003433,7.778988,3470.0,3469.9,15.63173246]
[1721092003645,7.778988,3470.0,3469.9,14.62976]
[1721092006417,7.778988,3470.0,3469.9,11.74784]
[1721092006945,7.778988,3470.0,3469.9,14.62976]
[1721092009653,7.778988,3470.0,3469.9,19.76388]
[1721092010807,7.778988,3470.0,3469.9,22.4978728]
[1721092011004,9.5,3471.1,3471.0,5.76202]
[1721092011310,9.60241866,3471.1,3471.0,8.74602]
[1721092011606,9.60241866,3471.1,3470.4,4.732]
[1721092011607,9.60241866,3471.1,3470.4,3.0]
[1721092011828,9.60241866,3471.1,3470.7,2.8812]
[1721092011829,2.2612,3471.0,3470.7,2.8812]
[1721092012034,0.10250117,3470.9,3470.7,2.8812]
[1721092012629,0.10250117,3470.9,3470.8,2.88118]
[1721092012829,0.10250117,3470.9,3470.0,7.37]
[1721092013043,0.10250117,3470.9,3470.1,3.0]
[1721092013263,0.10250117,3470.9,3470.8,2.88118]
[1721092013443,0.10250117,3470.9,3470.8,5.76236]
[1721092013647,9.5,3471.1,3471.0,2.88101]
[1721092013950,9.602508,3471.1,3471.0,2.88101]
[1721092015860,9.602508,3471.1,3471.0,5.76202]
[1721092017762,9.5,3471.1,3471.0,5.76202]
[1721092017931,9.5,3471.1,3471.0,6.31202]
[1721092018141,0.10255727,3471.1,3471.0,12.19303]
[1721092018430,9.5,3471.9,3471.8,2.88035]
[1721092018758,9.60263181,3471.9,3471.8,2.88035]
[1721092019648,9.60263181,3471.9,3471.0,3.55]
[1721092019649,10.80746499,3471.9,3471.0,3.55]
[1721092019852,10.80746499,3471.9,3471.1,0.55]
[1721092020508,10.80746499,3471.9,3470.9,3.0]
[1721092020509,10.80746499,3471.9,3471.3,2.88076]
[1721092020788,10.80746499,3471.9,3471.6,2.8805]
[1721092021754,9.60263181,3471.9,3471.6,2.8805]
[1721092022089,9.60263181,3471.9,3471.8,2.88035]
[1721092023170,9.60263181,3471.9,3471.6,2.8805]
[1721092023668,9.60263181,3471.9,3471.7,2.88041]
[1721092023988,9.60263181,3471.9,3471.1,5.31488]
[1721092023989,9.60263181,3471.9,3471.8,2.88035]
[1721092026993,9.60263181,3471.9,3471.5,2.88059]
[1721092027196,9.60263181,3471.9,3471.8,2.88035]
[1721092028202,9.60263181,3471.9,3471.6,2.88051]
[1721092028370,9.60263181,3471.9,3471.4,2.88066]
[1721092028555,9.60263181,3471.9,3471.5,2.88058]
[1721092030458,9.60263181,3471.9,3471.7,2.88037]
[1721092030659,9.60263181,3471.9,3470.1,2.88173]
[1721092030660,5.20386,3471.8,3470.1,2.88173]
[1721092030885,2.88071,3471.4,3470.5,2.88135]
[1721092031057,0.10273722,3471.3,3470.6,2.88134]
[1721092031269,0.62315822,3471.3,3470.6,2.88134]
[1721092031478,0.62315822,3471.3,3470.9,2.88107]
[1721092031686,0.10273722,3471.3,3470.9,2.88107]
[1721092032071,2.3235,3471.6,3471.0,2.88099]
[1721092032256,0.10268537,3471.5,3471.1,2.88089]
[1721092032871,0.10268537,3471.5,3470.9,2.88109]
[1721092033683,0.10268537,3471.5,3470.7,2.88126]
[1721092033893,0.24261854,3471.4,3470.7,2.88126]
[1721092034070,0.1025228,3471.3,3470.7,2.88126]
[1721092034288,0.1025228,3471.3,3470.8,2.88114]
[1721092034589,0.1025228,3471.3,3470.9,2.88102]
[1721092034787,0.1025228,3471.3,3471.1,2.8809]
[1721092035103,2.3235,3471.6,3471.1,2.8809]
[1721092035300,0.10250047,3471.5,3471.2,2.88083]
[1721092035679,2.3235,3471.6,3471.2,2.88083]
[1721092036401,2.55585,3471.6,3471.1,2.88092]
[1721092036577,2.55585,3471.6,3470.4,2.434]
[1721092036787,0.10252892,3471.5,3470.4,2.88144]
[1721092036989,2.88078,3471.3,3470.4,2.88144]
[1721092037369,0.10251924,3471.2,3470.4,2.88144]
[1721092037701,0.60283656,3471.1,3470.4,2.88144]
[1721092037996,0.10248328,3471.0,3470.4,2.88144]
[1721092038208,9.60248328,3471.0,3470.4,2.88144]
[1721092038701,9.60248328,3471.0,3470.2,2.88167]
[1721092038702,9.60248328,3471.0,3470.1,2.88175]
[1721092039061,9.60248328,3471.0,3469.8,0.1217007]
[1721092039062,9.60248328,3471.0,3470.2,2.88161]
[1721092039407,11.34876587,3471.0,3470.3,2.88155]
[1721092042264,11.94703228,3471.0,3470.3,2.88155]
[1721092042705,9.60248328,3471.0,3470.5,2.88137]
[1721092042877,9.60248328,3471.0,3470.4,2.434]
[1721092043107,9.60248328,3471.0,3470.9,9.92818]
[1721092043290,2.4592,3471.9,3471.6,2.88045]
[1721092043490,0.10241922,3471.8,3471.6,2.88045]
[1721092043691,0.10241922,3471.8,3471.4,2.88066]
[1721092043692,0.10241922,3471.8,3471.7,2.88043]
[1721092044189,0.10241922,3471.8,3471.4,2.88066]
[1721092044190,0.10241922,3471.8,3471.5,2.88055]
[1721092044390,0.10241922,3471.8,3471.4,2.88066]
[1721092044625,0.10241922,3471.8,3471.5,2.88058]
[1721092044830,0.10241922,3471.8,3471.6,2.88051]
[1721092045701,0.10241922,3471.8,3471.7,2.88043]
[1721092047709,0.10241922,3471.8,3471.7,5.76086]
[1721092047895,0.10241922,3471.8,3471.7,6.31086]
[1721092053360,0.10241922,3471.8,3471.7,2.88043]
[1721092054621,0.10241922,3471.8,3471.5,2.88051]
[1721092055023,0.10241922,3471.8,3471.7,2.88043]
[1721092055964,0.10241922,3471.8,3471.0,2.434]
[1721092056126,0.10241922,3471.8,3471.6,2.88051]
[1721092057164,0.10241922,3471.8,3471.7,5.76086]
[1721092057325,0.10241922,3471.8,3471.7,6.31086]
[1721092058849,0.10241922,3471.8,3471.7,9.19129]
[1721092059033,0.10241922,3471.8,3471.7,13.92329]
[1721092060584,0.10241922,3471.8,3471.7,12.19129]
[1721092061368,0.10241922,3471.8,3471.7,9.31086]
[1721092064962,0.10241922,3471.8,3471.7,8.76086]
[1721092065277,0.10241922,3471.8,3471.7,5.76086]
[1721092065972,0.10241922,3471.8,3470.7,7.37]
[1721092065973,1.29932114,3471.8,3470.9,2.88108]
[1721092066173,2.4097,3471.7,3470.5,2.88141]
[1721092066338,2.4097,3471.7,3470.4,1.50267648]
[1721092066339,2.4097,3471.4,3470.4,2.88149]
[1721092066540,2.88062,3471.5,3470.4,2.88149]
[1721092066541,2.4097,3471.2,3470.4,2.88149]
[1721092066779,0.25125072,3471.1,3470.4,2.88149]
[1721092066986,0.35404558,3471.1,3470.4,2.88149]
[1721092076301,0.35404558,3471.1,3470.0,2.88182]
[1721092076470,0.35404558,3471.1,3470.1,2.88173]
[1721092076471,2.8811,3470.9,3470.1,2.88173]
[1721092076673,0.69799579,3470.8,3470.1,2.88173]
[1721092081801,0.69799579,3470.8,3470.2,2.88166]
[1721092083670,2.4544,3470.7,3469.8,0.1217007]
[1721092083873,0.69799579,3470.8,3469.8,0.1217007]
[1721092083874,2.88149,3470.5,3469.8,0.1217007]
[1721092084081,5.43826237,3470.4,3469.8,0.1217007]
[1721092085289,2.88159,3470.3,3469.8,0.1217007]
[1721092085472,0.10231334,3470.2,3469.8,0.1217007]
[1721092085891,2.88186,3470.0,3469.8,0.1217007]
[1721092086211,8.76220616,3469.9,3469.8,0.1217007]
[1721092086395,8.22853883,3469.9,3469.8,0.1217007]
[1721092086935,8.52633496,3469.9,3469.8,0.1217007]
[1721092088735,5.64441496,3469.9,3469.8,0.1217007]
[1721092089396,2.76249496,3469.9,3469.8,0.1217007]
[1721092089598,3.32692146,3469.9,3469.8,0.1217007]
[1721092089833,6.20884146,3469.9,3469.8,0.1217007]
[1721092091236,9.09076146,3469.9,3469.8,0.1217007]
[1721092092230,6.20884146,3469.9,3469.8,0.1217007]
[1721092093037,3.32692146,3469.9,3469.8,0.1217007]
[1721092093254,2.76249496,3469.9,3469.8,0.1217007]
[1721092093757,0.10229883,3469.9,3469.8,0.1217007]
[1721092094062,2.4321,3470.4,3469.8,0.1217007]
[1721092094269,0.10188905,3469.9,3469.8,0.1217007]
[1721092094559,9.5,3470.7,3469.8,0.1217007]
[1721092094560,0.10193247,3470.3,3469.8,0.1217007]
[1721092094725,9.5,3470.7,3470.1,2.88169]
[1721092095055,9.5,3470.7,3470.3,2.88153]
[1721092095756,9.5,3470.7,3469.8,5.4376807]
[1721092095968,9.5,3470.7,3470.0,2.88182]
[1721092096467,9.5,3470.7,3470.4,2.88149]
[1721092097372,0.10208917,3470.6,3470.4,2.88149]
[1721092098460,0.10208917,3470.6,3469.8,2.5557007]
[1721092098696,0.10208917,3470.6,3470.5,5.76284]
[1721092098995,9.5,3470.7,3470.6,5.76268]
[1721092099145,9.5,3470.7,3470.6,6.31268]
[1721092100848,2.4685,3472.1,3471.3,2.8807]
[1721092101042,9.5,3471.4,3471.3,2.8807]
[1721092101284,9.6023522,3471.4,3471.3,2.8807]
[1721092101694,9.6023522,3471.4,3471.1,2.88086]
[1721092101995,9.6023522,3471.4,3471.2,2.88084]
[1721092103297,9.6023522,3471.4,3470.4,2.88145]
[1721092103298,5.22268,3471.3,3469.9,2.88192]
[1721092103502,5.22268,3471.3,3470.2,2.88164]
[1721092103503,2.88101,3471.1,3470.2,2.88164]
[1721092103705,2.88102,3471.0,3470.2,2.88164]
[1721092103859,2.98349669,3471.0,3470.2,2.88164]
[1721092104054,0.29834967,3470.9,3470.2,2.88164]
[1721092104305,0.10247073,3470.8,3470.2,2.88164]
[1721092105004,0.10247073,3470.8,3470.0,2.88183]
[1721092105296,2.88141,3470.6,3469.8,0.1217007]
[1721092105459,0.4021504,3470.5,3469.8,0.1217007]
[1721092105656,0.4021504,3470.5,3469.8,3.0037007]
[1721092105867,0.10225572,3470.4,3470.0,2.88178]
[1721092106103,2.3419,3470.7,3470.0,2.88178]
[1721092106314,0.10225274,3470.3,3470.0,2.88178]
[1721092106471,2.3419,3470.7,3470.0,2.88178]
[1721092106670,2.98393976,3470.2,3469.8,0.1217007]
[1721092106872,0.10224976,3470.2,3469.8,0.1217007]
[1721092107104,2.3419,3470.7,3469.8,0.1217007]
[1721092107320,0.10222692,3470.1,3469.8,0.1217007]
[1721092107521,2.88152,3470.4,3469.8,0.02813691]
[1721092107825,0.10222583,3470.0,3469.8,0.02813691]
[1721092107995,2.88152,3470.4,3469.8,0.02813691]
[1721092108170,0.10222285,3469.9,3469.8,0.02813691]
[1721092108376,2.88152,3470.4,3469.8,0.02813691]
[1721092108617,0.6026885,3470.3,3469.8,0.02813691]
[1721092108774,0.70492182,3470.3,3469.8,0.02813691]
[1721092108980,0.10223332,3470.3,3470.0,2.88182]
[1721092109274,11.8419,3470.7,3470.0,2.88182]
[1721092109275,0.10222594,3470.2,3470.0,2.88182]
[1721092109525,11.8419,3470.7,3470.0,2.88182]
[1721092109690,11.8419,3470.7,3470.1,2.88174]
[1721092109893,9.5,3470.7,3470.2,0.05763231]
[1721092110129,9.5,3470.7,3470.4,2.8815]
[1721092110413,9.5,3470.7,3470.2,2.88164]
[1721092110622,9.5,3470.7,3470.3,2.88156]
[1721092111813,9.5,3470.7,3470.4,2.88149]
[1721092111978,9.5,3470.7,3470.6,2.88134]
[1721092117103,9.5,3470.7,3470.6,5.76268]
[1721092120983,9.5,3470.7,3470.6,6.31268]
[1721092122083,2.4798,3471.6,3471.3,2.88071]